[Event "1000GM Memorial Day NY IM-C 2023"]
[Site "New York"]
[Date "2023.05.29"]
[Round "7.2"]
[White "Paragua, Mark"]
[Black "Lee, Megan"]
[Result "1/2-1/2"]
[ECO "A07"]
[WhiteElo "2442"]
[BlackElo "2261"]
[Annotator "TA"]
[PlyCount "143"]
[EventDate "2023.05.23"]
[EventType "tourn"]
[EventCountry "USA"]
[SourceTitle "playchess.com"]
[Source "ChessBase"]
[SourceQuality "1"]
[TimeControl "5400+30"]

{[%evp 12,143,5,7,28,24,28,39,81,72,70,35,40,22,25,-9,8,-6,-14,-10,-10,-11,-7,-6,-10,-12,-15,-20,-19,-4,0,0,0,0,0,-4,0,-13,-21,-41,0,0,0,0,0,0,0,0,0,0,0,-12,0,0,0,0,0,0,-7,-7,0,0,0,0,0,0,0,0,0,0,0,0,8,8,8,8,8,8,8,8,8,8,166,164,310,310,310,310,310,310,310,310,310,310,310,310,310,310,310,310,310,310,310,310,310,0,310,310,310,310,310,310,310,310,310,310,310,310,310,310,310,310,310,0,310,310,310,310,310,310,310,310,310,310]} 1. Nf3 {[%emt 0:00:04]} d5 {[%emt 0:02:38]} 2. g3 {[%emt 0:00:10]} g6 {[%emt 0:00:05]} 3. Bg2 {[%emt 0:00:05]} Bg7 {[%emt 0:00:05]} 4. O-O {[%emt 0:00:11]} e5 {[%emt 0:00:54]} 5. d3 {[%emt 0:00:09]} Ne7 {[%emt 0:02:12]} 6. e4 {[%emt 0:00:53]} dxe4 {[%emt 0:06:07]} 7. dxe4 {[%emt 0:00:07]} Qxd1 {[%emt 0:00:45] A07: Réti Opening: New York and Capablanca Systems.} 8. Rxd1 {[%emt 0:00:06]} h6 {[%emt 0:00:52]} 9. Nc3 {[%emt 0:01:32][%cal Bb1c3,Bc3a4,Ba4b2,Bb2d3][%mdl 32]} c6 {[%emt 0:04:45] [#] Dodges Nb5. White is slightly better.} 10. b3 $146 {[%emt 0:06:44] White has more active pieces.} ({Predecessor:} 10. Be3 Nd7 11. Rd2 O-O 12. Rad1 Nb6 13. Bxb6 axb6 14. Rd8 Be6 15. Rxf8+ Kxf8 16. Na4 {0-1 Ehemann,P (1787)-Marth,J (2075) Bad Zwesten op 7th 2003 (7)}) 10... Be6 {[%emt 0:04:34]} 11. Ba3 {[%emt 0:03:34]} Nd7 {[%emt 0:03:42]} 12. Na4 {[%emt 0:02:36]} Nc8 {[%emt 0:07:04]} 13. Rd2 {[%emt 0:05:23]} Ncb6 {[%emt 0:07:32]} 14. Nb2 {[%emt 0:00:38]} Bf8 {[%emt 0:04:06]} 15. Bxf8 {[%emt 0:05:07]} Rxf8 {[%emt 0:01:51]} 16. Nd3 {[%emt 0:01:54]} f6 {[%emt 0:00:25]} 17. Nh4 {[%emt 0:01:18]} g5 {[%emt 0:01:47]} 18. Nf5 {[%emt 0:00:14]} Bxf5 {[%emt 0:00:47]} 19. exf5 {[%emt 0:00:07]} O-O-O {[%emt 0:00:59]} 20. Rad1 {[%emt 0:00:11]} Rfe8 {[%emt 0:04:29]} 21. Be4 {[%emt 0:07:01]} Kc7 {[%emt 0:04:29]} 22. f3 {[%emt 0:07:00]} h5 {[%emt 0:05:06]} 23. c4 {[%emt 0:03:57]} a5 {[%emt 0:02:07]} 24. Kf1 {[%emt 0:04:37]} Nc8 {[%emt 0:02:27]} 25. c5 {[%emt 0:03:57]} Ne7 {[%emt 0:02:44]} 26. a3 {[%emt 0:01:44]} Nb8 {[%emt 0:03:14]} 27. Nb2 {[%emt 0:04:22]} Na6 {[%emt 0:01:16]} 28. Na4 {[%emt 0:03:09]} (28. Rxd8 {simplifies} Rxd8 29. Rxd8 Kxd8 30. Na4) 28... Rxd2 {[%emt 0:01:10]} 29. Rxd2 {[%emt 0:00:05]} Rd8 {[%emt 0:00:07]} 30. Rxd8 {[%emt 0:01:39]} Kxd8 $11 {[%emt 0:00:02][%mdl 4096] Endgame KBN-KNN} 31. Bd3 {[%emt 0:01:26]} Nb8 {[%emt 0:05:25]} 32. Ke2 {[%emt 0:04:48]} Nd7 {[%emt 0:02:08]} 33. Kd2 {[%emt 0:01:47]} Kc7 {[%emt 0:02:29]} 34. b4 {[%emt 0:07:26]} axb4 {[%emt 0:01:27]} 35. axb4 {[%emt 0:00:05]} b6 {[%emt 0:04:46]} 36. cxb6+ {[%emt 0:05:33]} Nxb6 {[%emt 0:00:05]} 37. Nc3 {[%emt 0:03:12]} Nbd5 {[%emt 0:06:08]} 38. Ne4 {[%emt 0:00:08]} Nxf5 {[%emt 0:03:20] aiming for ...Nd4.} 39. Nxf6 $1 {[%emt 0:00:45][%mdl 64] Discovered Attack} Nd4 {[%emt 0:02:03]} 40. Nxd5+ {[%emt 0:01:42]} cxd5 {[%emt 0:00:01] KB-KN} 41. Ke3 {[%emt 0:00:12]} Ne6 {[%emt 0:02:25]} 42. Bf5 {[%emt 0:00:39]} Ng7 {[%emt 0:01:42]} 43. Bg6 {[%emt 0:00:10] next f4 is good for White.} h4 {[%emt 0:00:32]} 44. gxh4 {[%emt 0:00:24]} gxh4 {[%emt 0:00:02]} 45. f4 {[%emt 0:00:25]} exf4+ {[%emt 0:00:31]} 46. Kxf4 {[%emt 0:00:05] Hoping for Ke5.} Kc6 $2 {[%emt 0:01:07]} (46... Ne6+ $1 $11 47. Kg4 h3) 47. Ke5 $18 {[%emt 0:00:16] Black must now prevent Kf6.} Kb5 {[%emt 0:00:20]} (47... d4 $142 48. Kf6 (48. Kxd4 Kd6 $18) 48... Kb5 49. Kxg7 Kxb4) 48. Kxd5 {[%emt 0:03:06]} ({Don't play} 48. Kf6 d4 49. Kxg7 Kxb4 $18) 48... Kxb4 {[%emt 0:00:08]} 49. Ke5 {[%emt 0:00:04]} Kc5 {[%emt 0:00:39]} 50. Kf6 {[%emt 0:00:09]} Kd6 {[%emt 0:00:12]} 51. Kxg7 {[%emt 0:00:11] KB-KP} Ke7 {[%emt 0:00:25]} 52. Bf7 {[%emt 0:00:10]} Kd7 {[%emt 0:00:44]} 53. Kf6 {[%emt 0:00:09]} Kd8 {[%emt 0:00:34]} 54. Bb3 {[%emt 0:00:47]} Ke8 {[%emt 0:00:07]} 55. Bc4 {[%emt 0:00:14]} Kd7 {[%emt 0:00:25]} 56. Bd3 {[%emt 0:02:51]} Ke8 {[%emt 0:00:40] [#]} 57. Bg6+ $1 {[%emt 0:00:10]} Kd7 {[%emt 0:00:15]} 58. Bf7 {[%emt 0:00:40]} Kd8 $1 {[%emt 0:00:16]} 59. Ke6 {[%emt 0:03:00]} Kc7 {[%emt 0:00:01]} 60. Be8 {[%emt 0:00:12]} Kd8 {[%emt 0:00:08]} 61. Kf7 {[%emt 0:00:21]} Kc7 {[%emt 0:00:18]} 62. Ke7 {[%emt 0:00:05]} Kc8 {[%emt 0:00:48]} 63. Bb5 {[%emt 0:01:39]} Kc7 {[%emt 0:00:05]} 64. Ba4 {[%emt 0:00:04]} Kc8 {[%emt 0:00:36]} 65. Kf6 {[%emt 0:02:00]} Kd8 {[%emt 0:00:01] [#]} 66. Bb5 $1 {[%emt 0:00:10]} Kc7 {[%emt 0:00:32]} 67. Bc4 $2 {[%emt 0:03:13]} ({White should try} 67. Bd3 $18) 67... Kd8 $2 {[%emt 0:00:17][%mdl 8192]} (67... Kd7 $1 $11 {and Black stays safe.} 68. Bb3 Ke8 69. Bf7+ Kd7 70. Be6+ Ke8) 68. Bf7 {[%emt 0:04:23] White has a decisive advantage.} Kd7 {[%emt 0:00:01]} 69. Bg6 {[%emt 0:00:13]} Kd8 {[%emt 0:00:26]} 70. Bh5 {[%emt 0:02:45]} Kd7 {[%emt 0:00:05]} 71. Bg4+ {[%emt 0:00:05]} Kd8 {[%emt 0:00:06]} 72. Kg5 {[%emt 0:00:36][%mdl 32768] Weighted Error Value: White=0.09 (flawless) /Black=0.12 (very precise) . An unexpected result.} 1/2-1/2

[Event "1000GM Memorial Day NY IM-C 2023"]
[Site "New York"]
[Date "2023.05.29"]
[Round "7.3"]
[White "Poliannikov, Danila"]
[Black "Zumsande, Martin"]
[Result "1-0"]
[ECO "C03"]
[WhiteElo "2278"]
[BlackElo "2454"]
[Annotator "TA"]
[PlyCount "59"]
[EventDate "2023.05.23"]
[EventType "tourn"]
[EventCountry "USA"]
[SourceTitle "playchess.com"]
[Source "ChessBase"]
[SourceQuality "1"]
[TimeControl "5400+30"]

{[%evp 11,59,0,5,0,25,6,14,0,12,2,13,2,4,1,4,8,5,12,77,83,105,97,98,104,100,86,126,114,196,171,303,289,334,329,305,192,189,156,219,222,294,267,297,278,300,308,408,357,751,758]} 1. e4 {[%emt 0:00:10]} e6 {[%emt 0:00:06]} 2. d4 {[%emt 0:00:05]} d5 {[%emt 0:00:04]} 3. Nd2 {[%emt 0:00:04]} Be7 {[%emt 0:00:05]} 4. Bd3 {[%emt 0:00:57]} c5 {[%emt 0:00:11]} 5. dxc5 {[%emt 0:00:07]} Nf6 {[%emt 0:00:34]} 6. Qe2 {[%emt 0:00:07]} O-O {[%emt 0:00:26]} 7. Ngf3 {[%emt 0:00:04] C03: French Tarrasch: Unusual Black 3rd moves.} a5 {[%emt 0:00:15]} 8. O-O {[%emt 0:00:14]} Na6 {[%emt 0:00:12]} 9. e5 {[%emt 0:00:05] The position is equal.} Nd7 {[%emt 0:00:06]} 10. c4 {[%emt 0:00:25]} Naxc5 {[%emt 0:01:10]} 11. Bc2 {[%emt 0:01:14]} b6 {[%emt 0:01:20]} 12. Nd4 {[%emt 0:01:25]} Qc7 {[%emt 0:08:17]} 13. Re1 $40 {[%emt 0:28:10][%mdl 128] White attacks.} (13. Qh5 g6 14. Nb5 Qc6 $17) 13... Ba6 {[%emt 0:31:30]} 14. b3 {[%emt 0:07:19] [#]} (14. Qh5 g6 15. Qe2 a4 $15) 14... f5 $146 {[%emt 0:01:52]} (14... Rfd8 $11) ({Predecessor:} 14... Rfd8 15. Bb2 dxc4 16. bxc4 Nxe5 17. Qxe5 Qxe5 18. Rxe5 Bf6 19. f4 Rac8 20. Rc1 h6 {½-½ Domancich,E (2305)-Tazelaar,H (2399) W-ch37 prel03 email 2013}) 15. exf6 $16 {[%emt 0:10:16] Black is on the road to losing.} Rxf6 {[%emt 0:14:49]} 16. N2f3 {[%emt 0:01:15]} (16. Qh5 $2 Rh6 $19) 16... h6 {[%emt 0:02:51] Repels Bg5} 17. Bb2 {[%emt 0:08:30][%cal Od4f5]} Raf8 {[%emt 0:00:34][%cal Oe6e5]} 18. Rad1 {[%emt 0:06:41]} Qc8 19. Nb5 {[%emt 0:00:30] White is more active.} R6f7 (19... Bxb5 $16 20. Bxf6 (20. cxb5 R6f7 $16) 20... Nxf6) 20. cxd5 $18 {[%emt 0:00:30] [#] b4 is the strong threat.} exd5 (20... e5 $142) 21. Bg6 {[%emt 0:00:30]} ({And not} 21. Rxd5 Qc6 22. Rxd7 (22. Qxe7 Rxe7 23. Rxe7 Rxf3 $17) 22... Qxd7 $15) 21... Qc6 22. Bxf7+ {[%emt 0:00:30]} Rxf7 23. Nfd4 {[%emt 0:00:30][%cal Bf3d4,Bd4c6,Bc6e5][%mdl 32]} Qg6 24. Qe3 {[%emt 0:00:30]} Ne4 (24... Kh7 $16 25. a4 Bf6) 25. f3 {[%emt 0:00:30]} Bg5 26. Qe2 {[%emt 0:00:30]} Nd6 27. a4 {[%emt 0:00:30]} Nc5 28. Nc6 {[%emt 0:00:30] [#] aiming for Ne5.} Qf5 29. Ne5 {[%emt 0:00:30]} Re7 $2 (29... Rf6 30. Rxd5 Re6 31. Rxd6 Bxb5) 30. Nxd6 {[%emt 0:00:30] Weighted Error Value: White=0.12 (very precise) /Black=0.39} 1-0

[Event "1000GM Memorial Day NY IM-C 2023"]
[Site "New York"]
[Date "2023.05.29"]
[Round "7.4"]
[White "Nemeth, Miklos"]
[Black "Mahajan, Rushaan"]
[Result "1/2-1/2"]
[ECO "C54"]
[WhiteElo "2452"]
[BlackElo "2279"]
[Annotator "TA"]
[PlyCount "46"]
[EventDate "2023.05.23"]
[EventType "tourn"]
[EventCountry "USA"]
[SourceTitle "playchess.com"]
[Source "ChessBase"]
[SourceQuality "1"]
[TimeControl "5400+30"]

{[%evp 11,46,16,24,18,25,18,17,16,9,0,12,12,12,0,1,3,6,20,45,5,13,14,17,0,37,0,6,27,30,0,0,-8,0,-11,-25,-52,0]} 1. e4 {[%emt 0:01:50]} e5 {[%emt 0:01:11]} 2. Nf3 {[%emt 0:00:11]} Nc6 {[%emt 0:00:03]} 3. Bc4 {[%emt 0:00:09]} Bc5 {[%emt 0:00:04]} 4. O-O {[%emt 0:00:08]} Nf6 {[%emt 0:00:02]} 5. d3 {[%emt 0:00:41]} d6 {[%emt 0:00:13]} 6. c3 {[%emt 0:00:33]} a6 {[%emt 0:00:04] 6...a5 is becoming the main line.} 7. a4 {[%emt 0:02:36] C54: Giuoco Piano: 4 c3 Nf6, main lines with 5 d4 and 5 d3.} Ba7 {[%emt 0:00:13]} 8. a5 {[%emt 0:01:54]} h6 {[%emt 0:00:31]} 9. Re1 {[%emt 0:04:14] The position is equal.} g5 {[%emt 0:01:45]} 10. Be3 {[%emt 0:00:32]} Bxe3 {[%emt 0:01:47]} 11. fxe3 {[%emt 0:01:17] [#]} Qe7 $146 {[%emt 0:01:07]} ({Predecessor:} 11... g4 12. Rf1 d5 13. exd5 Nxd5 14. Qb3 Nxe3 15. Bxf7+ Ke7 16. Nh4 Nxf1 17. Ng6+ Kf6 18. Nxh8 {0-1 Lobanov,S (2530)-Makarian,R (2444) RUS-ch U21 Moscow 2020 (5)}) 12. Rf1 {[%emt 0:02:33]} Be6 {[%emt 0:00:53]} 13. Nbd2 {[%emt 0:00:43]} O-O-O {[%emt 0:01:12]} 14. Qe2 {[%emt 0:00:49]} d5 {[%emt 0:02:03]} 15. exd5 {[%emt 0:00:35]} Nxd5 {[%emt 0:00:51]} 16. d4 {[%emt 0:04:21][%cal Oc4a6]} exd4 {[%emt 0:02:52]} 17. exd4 {[%emt 0:02:28][%cal Oc4a6] [#] Black must now prevent Bxa6!} Kb8 {[%emt 0:05:50]} 18. Ne5 {[%emt 0:05:32]} Nxe5 {[%emt 0:01:20]} 19. Qxe5 {[%emt 0:00:12] Threatens to win with Bxd5.} f6 {[%emt 0:04:28]} 20. Qe1 {[%emt 0:00:10]} Rhe8 {[%emt 0:02:08]} 21. Bxd5 {[%emt 0:14:33]} Rxd5 {[%emt 0:00:19]} 22. Qe3 {[%emt 0:00:16]} Qd8 {[%emt 0:06:52]} 23. b4 {[%emt 0:03:40]} Rf5 {[%emt 0:15:41] Not much happened in this game.   Weighted Error Value: White=0.09 (flawless) /Black=0.05 (flawless)} (23... Bg4 $15 24. Qf2 Rf5) 1/2-1/2

[Event "1000GM Memorial Day NY IM-C 2023"]
[Site "New York"]
[Date "2023.05.29"]
[Round "8.1"]
[White "Sazci, Bilgen"]
[Black "Moor, Nathaniel Philip"]
[Result "1/2-1/2"]
[ECO "B24"]
[WhiteElo "1827"]
[BlackElo "2185"]
[Annotator "TA"]
[PlyCount "99"]
[EventDate "2023.05.23"]
[EventType "tourn"]
[EventCountry "USA"]
[SourceTitle "playchess.com"]
[Source "ChessBase"]
[SourceQuality "1"]
[TimeControl "5400+30"]

{[%evp 16,99,0,-14,0,-18,-6,-25,-18,-16,-3,-30,-37,-17,8,0,0,0,0,0,9,0,0,0,0,0,0,0,0,0,0,0,7,0,0,0,0,0,0,0,31,0,58,0,18,16,30,15,13,8,144,0,0,0,0,0,0,0,99,85,82,20,14,-194,-191,-116,-109,-285,-251,-864,-1014,-966,0,-44,0,-831,-785,-758,-175,-29979,-372,-380,-342,-302,-52,-67]} 1. e4 {[%emt 0:03:13]} c5 {[%emt 0:00:10]} 2. Nc3 {[%emt 0:00:23]} Nc6 {[%emt 0:00:07]} 3. g3 {[%emt 0:00:09]} g6 {[%emt 0:00:11]} 4. Bg2 {[%emt 0:00:06]} Bg7 {[%emt 0:00:03]} 5. Nge2 {[%emt 0:00:23]} e6 {[%emt 0:00:33]} 6. O-O {[%emt 0:00:30]} Nge7 {[%emt 0:00:09][%cal Bg8e7,Be7c6,Bc6d4][%mdl 32]} 7. d3 {[%emt 0:00:20]} O-O {[%emt 0:00:45]} 8. Be3 {[%emt 0:00:31]} Nd4 {[%emt 0:00:18]} 9. f4 {[%emt 0:01:02]} Nec6 {[%emt 0:02:43] B24: Closed Sicilian: 3 g3 sidelines.} 10. e5 {[%emt 0:02:31]} d6 {[%emt 0:03:26]} 11. exd6 $1 {[%emt 0:01:17]} Qxd6 {[%emt 0:00:51] Black has an edge.} 12. Ne4 {[%emt 0:00:18] [#]} Qc7 $146 {[%emt 0:01:46]} ({Predecessor:} 12... Qe7 13. c3 Nxe2+ 14. Qxe2 b6 15. Nxc5 bxc5 16. Bxc6 Rb8 17. Qf2 Qd6 18. Bf3 Rb5 {0-1 Escobar Roldan,J-Interian Rodriguez,A (2071) CUB-ch disabled 2017 (2)}) 13. Nxc5 {[%emt 0:08:40]} Nxe2+ {[%emt 0:09:00]} 14. Qxe2 {[%emt 0:00:07]} Nd4 {[%emt 0:00:37]} (14... Bxb2 $5 {[%cal Rc6d4]} 15. Rab1 Bg7 $11) 15. Qf2 {[%emt 0:00:35]} Qxc5 {[%emt 0:02:15]} 16. c3 {[%emt 0:00:16]} Rd8 {[%emt 0:00:27]} 17. Rac1 {[%emt 0:02:07]} (17. Bxd4 $2 Rxd4 18. Kh1 (18. cxd4 $2 Bxd4 19. b3 Rb8 $19) 18... Rd5 $19) 17... Qb6 {[%emt 0:15:04]} 18. Rc2 {[%emt 0:02:46]} (18. Bxd4 $2 Rxd4 19. Rcd1 (19. cxd4 $2 Bxd4 20. Rc2 Bd7 $19) 19... Bd7 $19) 18... Rd6 {[%emt 0:05:09]} 19. cxd4 {[%emt 0:09:01]} (19. Bxd4 $2 Rxd4 20. Rd1 (20. cxd4 $2 Bxd4 $19) 20... Rb8 $19) 19... Bxd4 {[%emt 0:00:19]} 20. Bxd4 {[%emt 0:00:10]} Rxd4 {[%emt 0:00:37]} 21. Rfc1 {[%emt 0:00:42]} Bd7 {[%emt 0:00:16]} 22. Bxb7 {[%emt 0:04:35][%mdl 64] Deflection} Rd8 {[%emt 0:01:27]} 23. Be4 {[%emt 0:09:05]} Bb5 {[%emt 0:02:10] Dodges Rc4} 24. Rc8 {[%emt 0:01:06]} Kg7 {[%emt 0:06:40]} 25. Rxd8 {[%emt 0:01:58]} Qxd8 {[%emt 0:00:09]} 26. Rc8 {[%emt 0:02:14][%mdl 64] Deflection} Qd6 {[%emt 0:00:41]} 27. Rc3 {[%emt 0:04:28]} h5 {[%emt 0:13:07][%cal Rb5d3]} 28. b3 {[%emt 0:03:31]} (28. Qe3 $5 {[%cal Rb2b3]}) 28... h4 {[%emt 0:03:58]} (28... Bxd3 $11 29. Bxd3 Rxd3 30. Rxd3 Qxd3) 29. Kg2 {[%emt 0:04:09]} (29. gxh4 f5 30. Bg2 (30. Rc7+ Kh6 $11) 30... Rxf4 31. Qxa7+ Kf6 $11) (29. Qe3 $1 $14) 29... f5 {[%emt 0:11:18]} 30. Bf3 {[%emt 0:01:00]} Kf6 {[%emt 0:05:20]} 31. a4 {[%emt 0:04:33]} (31. gxh4 Qxf4 32. h5 gxh5 33. Bxh5 Qxf2+ 34. Kxf2 Bxd3 $17) 31... Bxd3 {[%emt 0:00:53]} 32. Rc6 {[%emt 0:01:35]} Qb4 {[%emt 0:00:05]} (32... hxg3 $2 33. Qe3 (33. hxg3 Qb4 $16) 33... Re4 34. Qxe4 (34. Rxd6 Rxe3 35. hxg3 Bf1+ {[%mdl 64] Discovered Attack} 36. Kf2 Rxb3 $15) (34. Bxe4 $2 Bxe4+ 35. Kxg3 Bxc6 $19) 34... fxe4 35. Rxd6 $18) (32... Qd8 $1 $11 {remains equal.} 33. Qb2 (33. gxh4 $2 Be4 $19) 33... Kf7) 33. Qb2 {[%emt 0:02:30]} (33. gxh4 Be4 34. Rc4 (34. Bxe4 $2 Rd2 $19) 34... Rxc4 35. bxc4 Qxc4 $15) (33. g4 $1 $16 g5 34. fxg5+ Ke7 35. Qe3 (35. Qxh4 Rxg4+ 36. Bxg4 Be4+ 37. Kf1 Bxc6 $11)) 33... Be4 $11 {[%emt 0:08:59]} 34. Bxe4 {[%emt 0:13:37]} fxe4 {[%emt 0:00:28][%mdl 4096] Endgame KQR-KQR} 35. Kh3 {[%emt 0:01:15] Rc4 would be deadly.} (35. gxh4 Kf5 36. Rc7 e5 $17) 35... Qd2 $1 {[%emt 0:03:19]} 36. Qa3 {[%emt 0:02:36][%cal Ra3f8]} Rd8 {[%emt 0:00:36] Prevents Qf8+.} (36... Kf7 $1 $11) 37. Rc7 $16 {[%emt 0:06:01] White threatens Qe7+ and mate. Really sharp!} (37. gxh4 $2 Rd3+ 38. Kg4 Qg2#) 37... Qd6 {[%emt 0:02:00] Inhibits Qe7+.} 38. Qb2+ {[%emt 0:05:21]} (38. Qc1 hxg3 39. Qc3+ (39. hxg3 Qd4 $11) (39. Rxa7 $2 Rh8+ 40. Kg2 Qd4 $19) 39... Qd4 40. Qxd4+ (40. Qxg3 Qd3 $17) 40... Rxd4 $11) (38. Qxd6 $1 $16 Rxd6 39. Kxh4 (39. Rxa7 hxg3 40. hxg3 Rb6 $11)) 38... Qd4 $11 {[%emt 0:00:01] [#]} 39. g4 $2 {[%emt 0:00:31]} g5 $19 {[%emt 0:01:57]} (39... Qxb2 $2 40. g5+ (40. Kxh4 $2 Qxh2#) 40... Kf5 41. Rf7+) 40. fxg5+ {[%emt 0:02:36]} Kxg5 {[%emt 0:00:30]} 41. Qxd4 {[%emt 0:01:04]} (41. Qc1+ $17 e3 42. Qc4 Qxc4 43. Rxc4) 41... Rxd4 {[%emt 0:00:01] KR-KR} 42. Rg7+ $2 {[%emt 0:00:50] [#]} (42. Rxa7 Rd3+ 43. Kg2 Rd2+ 44. Kf1 Rxh2 $19) (42. a5) 42... Kf4 $1 {[%emt 0:00:17]} 43. Rf7+ {[%emt 0:00:32]} Kg5 $2 {[%emt 0:00:24]} ({Black should try} 43... Ke5 $19 44. a5 e3) 44. Rg7+ $15 {[%emt 0:00:23]} (44. Rxa7 $2 Rd3+ 45. Kg2 Rd2+ 46. Kf1 Rxh2 $19) 44... Kf4 $2 {[%emt 0:00:53][%mdl 8192]} (44... Kf6 $15 45. Rc7 (45. Rxa7 $2 {is the wrong capture.} e3 $19) 45... e3) 45. Rf7+ $1 $19 {[%emt 0:00:05]} (45. Rxa7 $2 {too greedy.} e3 46. Rf7+ Ke4 $19) 45... Ke5 {[%emt 0:00:20]} 46. g5 {[%emt 0:00:17]} Rd1 $2 {[%emt 0:01:05]} (46... e3 {( -> ...e2)} 47. Rf1 Ke4) 47. Kg2 $2 {[%emt 0:00:31] [#]} (47. Kxh4 $2 {perishes.} e3 48. Rf3 Ke4 $19) (47. g6 $19) 47... h3+ $1 {[%emt 0:00:46][%mdl 512]} 48. Kf2 {[%emt 0:01:05]} Rd2+ {[%emt 0:00:17]} 49. Ke3 {[%emt 0:00:19]} Rd3+ {[%emt 0:00:58]} (49... Rxh2 $19 {Threatens to win with ...Rh1.} 50. g6 Rg2) 50. Ke2 {[%emt 0:00:38] An exciting game.   Weighted Error Value: White=0.49/Black=0.64} 1/2-1/2

[Event "1000GM Memorial Day NY IM-C 2023"]
[Site "New York"]
[Date "2023.05.29"]
[Round "8.2"]
[White "Mahajan, Rushaan"]
[Black "Mou, Iris"]
[Result "1-0"]
[ECO "A13"]
[WhiteElo "2279"]
[BlackElo "2002"]
[Annotator "TA"]
[PlyCount "83"]
[EventDate "2023.05.23"]
[EventType "tourn"]
[EventCountry "USA"]
[SourceTitle "playchess.com"]
[Source "ChessBase"]
[SourceQuality "1"]
[TimeControl "5400+30"]

{[%evp 14,83,12,10,29,27,25,27,27,14,64,34,67,65,72,59,69,4,36,12,71,78,86,34,104,88,114,116,122,62,166,170,172,168,212,206,315,257,301,254,360,307,284,271,506,484,509,414,431,417,698,695,644,630,1897,600,571,327,296,313,310,312,424,381,616,599,881,872,856,852,957,933]} 1. Nf3 {[%emt 0:00:02]} Nf6 {[%emt 0:00:07]} 2. g3 {[%emt 0:00:04]} d5 {[%emt 0:00:09][%cal Bd7d5,Bd5d4][%mdl 32]} 3. c4 {[%emt 0:01:19]} d4 {[%emt 0:00:45]} 4. Bg2 {[%emt 0:00:16]} e6 {[%emt 0:00:15]} 5. O-O {[%emt 0:00:43]} c5 {[%emt 0:00:07]} 6. e3 {[%emt 0:00:03]} Nc6 {[%emt 0:00:10]} 7. exd4 {[%emt 0:00:04]} cxd4 {[%emt 0:00:08]} 8. d3 {[%emt 0:00:03]} h6 {[%emt 0:00:10] A13: English Opening: 1...e6.} 9. Bf4 {[%emt 0:04:38]} Nd7 {[%emt 0:00:13] Against Ne5} 10. Re1 {[%emt 0:06:22]} Bb4 {[%emt 0:01:35] [#] White has an edge.} 11. Bd2 $146 {[%emt 0:11:21]} ({Predecessor:} 11. Nbd2 a5 12. a3 Be7 13. g4 O-O 14. Rb1 a4 15. h3 Ra5 16. Bg3 Nc5 17. Qe2 {½-½ Sjugirov,S (2709)-Iljiushenok,I (2567) RUS-chT Rapid 2022 (3.2)}) 11... Bd6 {[%emt 0:02:46]} (11... Be7 $11) 12. Na3 $14 {[%emt 0:02:36]} Nc5 {[%emt 0:09:48]} 13. Qc2 {[%emt 0:01:32] aiming for b4.} a5 {[%emt 0:03:39]} 14. Nb5 {[%emt 0:06:09]} Bb8 {[%emt 0:03:56]} 15. b3 {[%emt 0:08:02]} ({Better is} 15. a3 $14) 15... e5 {[%emt 0:07:13]} (15... O-O $5 {[%cal Re6e5]}) 16. Nxe5 {[%emt 0:08:47]} Nxe5 {[%emt 0:02:12]} (16... Bxe5 $11 {keeps the balance.} 17. f4 {[%mdl 64] Pin} (17. Bxc6+ bxc6 18. Rxe5+ Ne6 $14) 17... O-O 18. fxe5 Bf5) 17. f4 $16 {[%emt 0:00:04][%mdl 64] [#] Pin. White has more active pieces.} Bf5 {[%emt 0:03:38][%cal Oc5d3]} 18. Bf1 {[%emt 0:03:36]} (18. fxe5 $16 {Strongly threatening b4.} O-O 19. Bf4) 18... f6 {[%emt 0:10:04]} 19. fxe5 {[%emt 0:02:55]} fxe5 {[%emt 0:00:14]} 20. Bf4 {[%emt 0:01:11]} Qf6 {[%emt 0:05:02] [#] Hoping for ...0-0.} 21. Nxd4 {[%emt 0:05:13]} (21. Bc1 $1 $16 {[%cal Rc1a3]}) 21... O-O {[%emt 0:11:19]} ({Black should try} 21... Be4 $1 $14) 22. Nxf5 $18 {[%emt 0:00:07]} Qxf5 {[%emt 0:08:34]} 23. Be3 {[%emt 0:00:18]} Ba7 {[%emt 0:00:38]} 24. Rad1 {[%emt 0:03:23]} h5 {[%emt 0:08:46]} (24... b6 $142 25. Bg2 Rad8) 25. Qg2 {[%emt 0:09:04]} Rfd8 {[%emt 0:03:12]} 26. Kh1 {[%emt 0:01:28]} Ne6 {[%emt 0:08:22]} (26... Rd7 {keeps fighting.} 27. Qe2 Qg4 28. Qxg4 hxg4 29. Bxc5 {[%mdl 64] Discovered Attack} Bxc5 30. Rxe5 Bd4) 27. Bxa7 {[%emt 0:00:52]} Rxa7 {[%emt 0:00:08]} 28. Qe4 {[%emt 0:00:28]} Qf7 {[%emt 0:05:40]} (28... Qxe4+ 29. Rxe4 g6 30. Rxe5 Nd4) 29. Bg2 {[%emt 0:02:37]} Nd4 {[%emt 0:00:38]} 30. Rf1 {[%emt 0:01:25]} Qe7 {[%emt 0:01:06]} 31. Rde1 {[%emt 0:00:33]} Re8 {[%emt 0:01:13]} (31... a4 $142 32. bxa4 Rxa4) 32. Qd5+ {[%emt 0:05:28]} Kh8 {[%emt 0:00:07]} 33. Rf4 {[%emt 0:02:06]} Nc2 {[%emt 0:05:06]} 34. Re2 {[%emt 0:01:30]} (34. Rf5 $142 Ra6 35. Rfxe5 (35. Qxb7 Qxb7 36. Bxb7 Nxe1 $16) 35... Nxe1 36. Rxe7 Rxe7 37. Qd8+ Kh7 38. Qxe7 Nxg2 39. Kxg2) 34... Nb4 {[%emt 0:00:00]} 35. Qe4 {[%emt 0:00:26] Threatens to win with Qf3.} exf4 {[%emt 0:00:00]} 36. Qxe7 {[%emt 0:00:05]} Rxe7 {[%emt 0:00:00]} 37. Rxe7 {[%emt 0:00:02] c5 is the strong threat.} fxg3 {[%emt 0:00:23] KRB-KRN} 38. a3 {[%emt 0:01:49]} (38. Bxb7 a4 39. hxg3 Ra5 $18) (38. hxg3 a4 39. Bxb7 Ra5 $18) 38... Nc2 $2 {[%emt 0:00:23]} (38... a4 39. bxa4 (39. axb4 axb3 40. Re8+ Kh7 $18) (39. Rxb7 $2 Rxb7 40. Bxb7 axb3 $19) (39. hxg3 g6 $16) 39... Nxd3 40. Re8+ (40. Rxb7 Nf2+ 41. Kg1 Rxa4 $14) (40. Bxb7 g5 $14) (40. hxg3 g6 $16) 40... Kh7 41. Be4+ (41. hxg3 Kh6 $11) 41... Kh6 42. Bxd3 gxh2) 39. c5 {[%emt 0:01:32][%cal Bc4c5,Bc5c6][%mdl 32] White is clearly winning.} ({Weaker is} 39. Rxb7 Rxb7 40. Bxb7 Nxa3 $18) 39... Ra8 {[%emt 0:00:45]} 40. Bxb7 {[%emt 0:00:49]} Rf8 {[%emt 0:00:46]} 41. c6 {[%emt 0:00:18]} h4 {[%emt 0:00:57]} 42. hxg3 {[%emt 0:00:23] Weighted Error Value: White=0.45/Black=0.66} 1-0